bitfinex-derivatives/quotes_SOLF0:USTF0_20241208
["timestamp","ask_amount","ask_price","bid_price","bid_amount"]
[1733688717836,3.2368,236.39,236.27,1.86]
[1733688717837,2.1144,236.36,236.3,2.41862004]
[1733688718035,2.1144,236.36,236.31,1.36047132]
[1733688718343,2.1144,236.36,236.27,1.86]
[1733688718542,2.1144,236.36,236.28,6.2892012]
[1733688718743,2.1144,236.36,236.29,4.59617089]
[1733688718939,2.1143,236.37,236.3,1.05814364]
[1733688719248,2.1143,236.37,236.31,1.36058376]
[1733688719440,2.1143,236.37,236.32,1.36058376]
[1733688719645,2.1143,236.37,236.27,1.86]
[1733688719846,3.2368,236.39,236.28,6.28902409]
[1733688720047,2.1142,236.38,236.29,6.28902409]
[1733688720249,2.1142,236.38,236.3,4.5960472]
[1733688720542,2.1145,236.36,236.31,4.5960472]
[1733688720743,2.1145,236.36,236.32,1.36057782]
[1733688720943,1.3768,236.39,236.33,1.36057782]
[1733688721144,1.3768,236.39,236.24,0.12860875]
[1733688721345,2.7539,236.39,236.25,6.29093931]
[1733688721642,2.7539,236.39,236.26,4.59778398]
[1733688721848,2.1148,236.32,236.27,2.41942491]
[1733688722044,2.1148,236.32,236.28,1.36120283]
[1733688722245,2.1148,236.32,236.25,1.86]
[1733688722545,2.1148,236.32,236.26,4.59795349]
[1733688722746,2.1148,236.32,236.27,2.41953715]
[1733688722950,2.1148,236.32,236.28,1.36123863]
[1733688723247,2.1148,236.32,236.25,1.86]
[1733688723450,2.1148,236.32,236.26,4.59692631]
[1733688723649,2.1148,236.32,236.27,2.41914169]
[1733688723850,2.1148,236.32,236.25,1.86]
[1733688724045,2.1148,236.32,236.26,2.4193211]
[1733688724247,2.1148,236.32,236.27,1.36099139]
[1733688724442,2.1148,236.32,236.25,1.86]
[1733688724840,1.86,236.35,236.26,2.41902955]
[1733688725045,2.1147,236.33,236.27,1.36069316]
[1733688725241,2.1147,236.33,236.25,1.86]
[1733688725548,2.1147,236.33,236.26,2.4186953]
[1733688725749,2.1147,236.33,236.27,1.36036984]
[1733688725939,2.1147,236.33,236.25,1.86]
[1733688726147,2.1147,236.33,236.26,2.41866229]
[1733688726345,2.1147,236.33,236.27,1.36033302]
[1733688726554,2.1147,236.33,236.25,1.86]
[1733688726745,2.1147,236.33,236.26,2.41840214]
[1733688726945,2.1147,236.33,236.27,1.36007676]
[1733688727149,2.1147,236.33,236.25,1.86]
[1733688727351,1.86,236.35,236.26,1.35985087]
[1733688727555,2.7539,236.39,236.27,2.41812253]
[1733688727747,1.279,236.4,236.28,4.59360062]
[1733688727948,2.1142,236.39,236.29,2.41812253]
[1733688728150,2.1142,236.39,236.3,1.86]
[1733688728357,1.279,236.4,236.31,1.86]
[1733688729250,1.279,236.4,236.32,1.35914162]
[1733688729449,1.279,236.4,236.31,1.86]
[1733688729655,2.1142,236.39,236.32,1.35898571]
[1733688729950,2.1142,236.39,236.31,1.86]
[1733688731259,2.1142,236.38,236.31,1.86]
[1733688733962,2.1142,236.39,236.31,1.86]
[1733688734760,1.279,236.4,236.31,1.86]
[1733688734957,2.1142,236.38,236.31,1.86]
[1733688735457,1.279,236.4,236.31,1.86]
[1733688735662,2.1145,236.35,236.31,1.86]
[1733688736061,1.279,236.4,236.28,1.86]
[1733688736261,1.279,236.4,236.29,1.3587897]
[1733688736463,2.6047,236.4,236.28,1.86]
[1733688736662,2.6047,236.4,236.29,1.3589932]
[1733688736864,2.6047,236.4,236.3,1.35882462]
[1733688737063,2.6047,236.4,236.28,1.86]
[1733688737264,2.6047,236.4,236.29,2.41708069]
[1733688737464,2.1146,236.35,236.3,1.35891863]
[1733688737764,2.1146,236.35,236.28,1.86]
[1733688738061,2.1146,236.35,236.29,2.41728106]
[1733688738266,2.1146,236.35,236.3,1.35911816]
[1733688738463,2.1146,236.35,236.28,1.86]
[1733688738662,2.1146,236.35,236.29,2.41750726]
[1733688738868,2.1146,236.35,236.3,1.35934378]
[1733688739060,2.1146,236.35,236.28,1.86]
[1733688739267,2.1146,236.35,236.29,2.4177972]
[1733688739569,2.1146,236.35,236.3,1.35963372]
[1733688739774,2.1144,236.37,236.28,1.86]
[1733688740068,2.6047,236.4,236.29,2.41807975]
[1733688740282,2.6047,236.4,236.3,1.35991969]
[1733688740467,2.6047,236.4,236.28,1.86]
[1733688740769,2.6047,236.4,236.29,2.41831356]
[1733688740970,2.6047,236.4,236.3,1.36015392]
[1733688741263,2.1145,236.36,236.31,1.36029838]
[1733688741471,2.1145,236.36,236.28,1.86]
[1733688741767,2.1145,236.36,236.29,2.41845007]
[1733688741962,2.1145,236.36,236.28,1.86]
[1733688742273,2.1145,236.36,236.29,4.59555524]
[1733688742464,2.1145,236.36,236.3,1.36023543]
[1733688742662,2.1145,236.36,236.31,1.36023543]
[1733688742865,2.1145,236.36,236.28,1.86]
[1733688743363,2.1145,236.36,236.29,4.59552635]
[1733688743563,2.1145,236.36,236.3,2.4184989]
[1733688743762,2.1145,236.36,236.31,1.36037079]
[1733688743963,2.1142,236.39,236.28,1.86]
[1733688744163,2.1142,236.39,236.29,4.59551996]
[1733688744469,2.1143,236.38,236.3,4.59551996]
[1733688744670,2.1143,236.38,236.31,2.41848524]
[1733688744866,2.1143,236.38,236.32,1.36042144]
[1733688745071,2.1143,236.38,236.28,1.86]
[1733688745266,2.1143,236.38,236.29,6.28890065]
[1733688745471,2.1143,236.38,236.3,4.59599426]
[1733688745673,2.1143,236.38,236.28,1.86]
[1733688745674,2.1143,236.38,236.31,2.41864093]
[1733688745867,2.1143,236.38,236.32,1.36057444]
[1733688746073,2.1143,236.38,236.28,1.86]
[1733688746275,2.1143,236.38,236.29,6.28879354]
[1733688746475,2.1143,236.38,236.3,4.59589775]
[1733688746777,2.1143,236.37,236.31,2.41859972]
[1733688746973,2.1143,236.37,236.32,1.36053986]
[1733688747170,2.1143,236.37,236.28,1.86]
[1733688747371,2.1143,236.37,236.29,6.28885492]
[1733688747569,2.1143,236.37,236.3,4.59594762]
[1733688747776,2.1143,236.37,236.31,2.41862332]
[1733688747976,2.1143,236.37,236.32,1.36055626]
[1733688748270,2.1143,236.37,236.28,1.86]
[1733688748477,1.86,236.42,236.29,6.28914774]
[1733688748676,1.86,236.42,236.3,4.59623554]
[1733688748875,1.86,236.42,236.31,1.05807012]
[1733688749077,1.86,236.42,236.32,1.36068223]
[1733688749281,1.86,236.42,236.28,1.86]
[1733688749582,2.1143,236.38,236.29,6.28939171]
[1733688749780,2.1143,236.38,236.28,1.86]
[1733688749781,2.1143,236.38,236.3,4.59647856]
[1733688749978,1.86,236.42,236.31,2.41882976]
[1733688750177,2.1142,236.39,236.32,2.41882976]
[1733688750476,1.86,236.42,236.28,1.86]
[1733688750676,1.86,236.42,236.29,6.28919123]
[1733688750875,1.86,236.42,236.3,1.36070653]
[1733688751080,1.3798,236.41,236.28,1.86]
[1733688751381,2.1147,236.34,236.29,1.36137394]
[1733688751572,2.1147,236.34,236.28,1.86]
[1733688751973,2.1147,236.34,236.29,1.36167443]
[1733688752173,2.1147,236.34,236.28,1.86]
[1733688752174,2.1147,236.33,236.28,1.86]
[1733688752582,2.1147,236.33,236.29,1.36193677]
[1733688752777,2.1147,236.33,236.3,1.36193677]
[1733688752977,2.1147,236.33,236.28,1.86]
[1733688753182,2.1147,236.33,236.29,1.36190366]
[1733688753383,2.1147,236.33,236.3,1.36190366]
[1733688753677,2.1147,236.33,236.28,1.86]
[1733688753882,2.1147,236.33,236.29,1.36188881]
[1733688754082,2.1147,236.33,236.3,1.36188881]
[1733688754285,2.1147,236.33,236.27,1.86]
[1733688754482,2.1147,236.33,236.28,2.42010012]
[1733688754680,1.86,236.37,236.29,1.36185828]
[1733688754882,2.1146,236.35,236.3,1.36185828]
[1733688755083,2.1146,236.35,236.27,1.86]
[1733688755386,2.1146,236.35,236.28,4.59942242]
[1733688755679,2.1146,236.35,236.29,1.36182837]
[1733688755879,2.1146,236.35,236.29,1.36180816]
[1733688756074,2.1146,236.35,236.3,1.36180816]
[1733688756279,2.1146,236.35,236.27,1.86]
[1733688756477,2.1146,236.35,236.28,2.42002136]
[1733688756674,2.1146,236.35,236.27,1.86]
[1733688756675,2.1146,236.35,236.29,1.36178717]
[1733688756883,2.1146,236.35,236.3,1.36178717]
[1733688757080,2.1146,236.35,236.27,1.86]
[1733688757277,2.1146,236.35,236.28,4.59917527]
[1733688757476,2.1146,236.35,236.29,1.36173596]
[1733688757682,2.1146,236.35,236.27,1.86]
[1733688757882,4.4767,236.4,236.28,2.42002436]
[1733688758087,2.1145,236.36,236.29,1.36179011]
[1733688758287,2.1145,236.36,236.3,1.36179011]
[1733688758485,2.1145,236.36,236.27,1.86]
[1733688758787,2.1145,236.36,236.28,4.5988125]
[1733688758987,2.1145,236.36,236.29,2.41980366]
[1733688759184,2.1145,236.36,236.3,1.36160887]
[1733688759388,2.1145,236.36,236.27,1.86]
[1733688759582,2.1145,236.36,236.28,3.54184309]
[1733688759786,2.1143,236.37,236.29,1.36208011]
[1733688759984,2.1143,236.37,236.3,1.36208011]
[1733688760287,2.1143,236.37,236.27,1.86]
[1733688760487,2.1143,236.37,236.28,4.60009672]
[1733688760780,2.1143,236.37,236.27,1.86]
[1733688760781,2.1143,236.37,236.29,1.36210699]
[1733688760977,2.1143,236.37,236.3,4.59939501]
[1733688761180,2.1143,236.37,236.31,1.36210699]
[1733688761386,2.1143,236.37,236.32,1.36210699]
[1733688761586,2.1143,236.37,236.27,1.86]
[1733688761786,2.1143,236.37,236.28,4.59919368]
[1733688762083,4.4767,236.4,236.29,4.59919368]
[1733688762386,4.4767,236.4,236.3,1.36179201]
[1733688762686,2.1143,236.38,236.31,1.36161101]
[1733688762890,2.1143,236.38,236.32,3.22161101]
[1733688763089,2.1143,236.38,236.32,1.86]
[1733688763490,2.1143,236.37,236.32,1.86]
[1733688768791,2.1143,236.37,236.33,1.36179297]
[1733688768996,2.1143,236.37,236.32,1.86]
[1733688769200,2.1143,236.37,236.33,1.36185293]
[1733688769503,2.1143,236.37,236.32,1.86]
[1733688769894,2.1143,236.37,236.33,1.3618306]
[1733688770091,2.1143,236.37,236.32,1.86]
[1733688770295,2.1143,236.37,236.33,1.36207545]
[1733688770493,2.1143,236.37,236.32,1.86]
[1733688770696,2.1143,236.37,236.33,1.36188247]
[1733688770900,2.1143,236.37,236.32,1.86]
[1733688771200,2.1143,236.37,236.33,1.36179713]
[1733688771400,2.1143,236.37,236.32,1.86]
[1733688771601,2.1143,236.37,236.33,1.36184336]
[1733688771900,2.1143,236.37,236.32,1.86]
[1733688772198,2.1143,236.37,236.33,1.36172282]
[1733688772403,2.1143,236.37,236.32,1.86]
[1733688772597,2.1143,236.37,236.33,1.36200521]
[1733688772901,2.1143,236.37,236.32,1.86]
[1733688773091,2.1143,236.37,236.33,1.36174691]
[1733688773291,2.1143,236.37,236.32,1.86]
[1733688773490,2.1143,236.37,236.33,1.36172926]
[1733688773695,2.1143,236.37,236.32,1.86]
[1733688773891,2.1143,236.37,236.33,1.36167079]
[1733688774099,2.1143,236.37,236.32,1.86]
[1733688774401,2.1143,236.37,236.33,1.36166112]
[1733688774696,2.1143,236.37,236.32,1.86]
[1733688774898,2.1143,236.37,236.33,1.36169156]
[1733688775094,2.1143,236.37,236.32,1.86]
[1733688775295,2.1143,236.37,236.33,1.361727]
[1733688775502,2.1143,236.37,236.32,1.86]
[1733688775702,2.1143,236.37,236.33,1.36174186]
[1733688776001,2.1143,236.37,236.32,1.86]
[1733688776202,2.1143,236.37,236.33,1.36177034]
[1733688776401,2.1143,236.37,236.34,1.36177034]
[1733688776603,2.1143,236.37,236.32,1.86]
[1733688776903,2.1143,236.37,236.33,1.36176372]
[1733688777096,2.1143,236.37,236.32,1.86]
[1733688777097,2.1143,236.37,236.34,1.36176372]
[1733688777297,2.1143,236.37,236.32,1.86]
[1733688777497,2.1143,236.37,236.33,1.36176065]
[1733688777698,2.1143,236.37,236.34,1.36176065]
[1733688777898,2.1143,236.37,236.32,1.86]
[1733688778101,2.1143,236.37,236.33,1.36147192]
[1733688778301,2.1143,236.37,236.32,1.86]
[1733688778302,2.1143,236.37,236.34,1.36147192]
[1733688778604,2.1143,236.37,236.32,1.86]
[1733688778802,2.1143,236.37,236.33,1.36134202]
[1733688779002,2.1143,236.37,236.32,1.86]
[1733688779003,2.1143,236.37,236.34,1.36134202]
[1733688779198,2.1143,236.37,236.32,1.86]
[1733688779404,2.1143,236.37,236.33,1.36134498]
[1733688779597,2.1143,236.37,236.34,1.36134498]
[1733688779796,2.1143,236.37,236.32,1.86]
[1733688779997,2.1143,236.37,236.33,1.36131321]
[1733688780205,2.1143,236.37,236.32,1.86]
[1733688780814,2.1143,236.37,236.33,1.36135177]
[1733688781001,2.1144,236.36,236.26,1.2827]
[1733688781202,2.1144,236.36,236.27,8.15190253]
[1733688781504,2.1144,236.36,236.28,6.29190253]
[1733688781807,2.1144,236.36,236.29,4.59892679]
[1733688782099,2.1144,236.36,236.3,4.59892679]
[1733688782305,2.1144,236.36,236.31,1.36168549]
[1733688782606,2.1144,236.36,236.27,1.86]
[1733688782807,2.1144,236.36,236.28,2.42051148]
[1733688783006,2.1144,236.36,236.27,1.86]
[1733688783007,2.1144,236.36,236.29,4.60078231]
[1733688783207,2.1144,236.36,236.3,3.54266225]
[1733688783409,2.1144,236.36,236.31,1.36239142]
[1733688783706,2.1144,236.36,236.32,1.36239142]
[1733688783906,2.1144,236.36,236.27,1.86]
[1733688784107,2.1144,236.36,236.28,4.60074749]
[1733688784408,2.1144,236.36,236.29,4.60074749]
[1733688784605,2.1144,236.36,236.3,3.54262671]
[1733688784811,2.1144,236.36,236.31,1.36238146]
[1733688785011,2.1144,236.36,236.32,1.36238146]
[1733688785205,2.1144,236.36,236.27,1.86]
[1733688785507,2.1144,236.36,236.28,4.60077558]
[1733688785710,2.1144,236.36,236.29,4.60077558]
[1733688785908,2.1148,236.32,236.3,3.54265586]
[1733688786208,2.1148,236.32,236.27,1.86]
[1733688786405,2.1148,236.32,236.28,3.5432911]
[1733688786607,2.1148,236.32,236.29,1.36263696]
[1733688786801,2.1148,236.32,236.3,1.36263696]
[1733688787007,2.1148,236.32,236.26,1.86]
[1733688787206,2.1148,236.32,236.27,3.54316329]
[1733688787406,2.1148,236.32,236.28,1.36258781]
[1733688787606,2.1148,236.32,236.29,1.36258781]
[1733688787803,2.1148,236.32,236.26,1.86]
[1733688788001,2.1148,236.32,236.27,3.54323377]
[1733688788207,2.1148,236.32,236.28,1.36261491]
[1733688788407,2.1148,236.32,236.29,1.36261491]
[1733688788610,2.1148,236.32,236.26,1.86]
[1733688788909,2.1148,236.32,236.27,3.54275383]
[1733688789108,2.1148,236.32,236.28,1.36243035]
[1733688789310,2.1148,236.32,236.29,1.36243035]
[1733688789611,2.1148,236.32,236.26,1.86]
[1733688789809,2.1148,236.32,236.27,1.36266918]
[1733688790110,2.1148,236.32,236.28,1.36266918]
[1733688790408,4.4767,236.4,236.25,1.86]
[1733688790607,4.4767,236.4,236.26,3.54312543]
[1733688790807,4.4767,236.4,236.27,1.36257324]
[1733688791107,4.4767,236.4,236.28,1.36257324]
[1733688791303,4.4767,236.4,236.25,1.86]
[1733688791304,2.115,236.3,236.25,1.86]
[1733688791509,1.86,236.34,236.26,3.5420027]
[1733688791806,2.1149,236.31,236.27,1.36223083]
[1733688792003,1.86,236.34,236.28,1.36223083]
[1733688792210,1.86,236.34,236.25,1.86]
[1733688792412,1.86,236.34,236.26,3.54132853]
[1733688792706,1.86,236.34,236.25,1.86]
[1733688792707,2.1147,236.33,236.25,1.86]
[1733688793011,1.86,236.37,236.26,3.54142755]
[1733688793309,1.86,236.37,236.27,1.36192552]
[1733688793510,2.1147,236.34,236.28,1.36192552]
[1733688793707,2.1147,236.34,236.25,1.86]
[1733688793911,2.1147,236.34,236.26,3.54120271]
[1733688794211,2.1147,236.33,236.27,1.36183382]
[1733688794514,2.1147,236.33,236.28,1.36183382]
[1733688794714,2.1147,236.33,236.25,1.86]
[1733688794904,2.1147,236.33,236.26,3.54058842]
[1733688795103,2.1147,236.33,236.27,1.36159759]
[1733688795307,2.1147,236.33,236.28,1.36159759]
[1733688795610,1.86,236.37,236.25,1.86]
[1733688795803,1.86,236.37,236.21,50.47096565]
[1733688795804,1.86,236.37,236.26,3.54097749]
[1733688796009,1.86,236.37,236.27,1.3617472]
[1733688796313,1.86,236.37,236.23,1.86]
[1733688796508,1.86,236.37,236.24,1.36237721]
[1733688796709,1.86,236.37,236.25,3.54261569]
[1733688796909,2.1151,236.28,236.26,1.36237721]
[1733688797105,2.1151,236.28,236.27,1.36237721]
[1733688797514,2.1151,236.28,236.23,1.86]
[1733688797710,2.1151,236.28,236.24,3.54263641]
[1733688797907,2.1151,236.28,236.25,1.36238517]
[1733688798116,2.1151,236.28,236.26,1.36238517]
[1733688798414,2.1151,236.28,236.23,1.86]
[1733688798613,2.1151,236.28,236.24,3.54231829]
[1733688798813,2.1151,236.28,236.25,1.36226281]
[1733688799017,2.1151,236.28,236.26,1.36226281]
[1733688799210,2.1151,236.28,236.23,1.86]
[1733688799406,2.1151,236.28,236.24,3.54256353]
[1733688799610,2.1151,236.28,236.25,1.36235714]
[1733688799810,2.1151,236.28,236.23,1.86]
[1733688799811,2.1151,236.28,236.26,1.36235714]
[1733688800011,2.1151,236.28,236.23,1.86]
[1733688800211,2.1151,236.28,236.24,1.3623668]
[1733688800412,2.1151,236.28,236.25,1.3623668]
[1733688800611,2.115,236.29,236.23,1.86]
[1733688800806,1.86,236.37,236.24,1.35631375]
[1733688801011,1.86,236.37,236.25,1.35631375]
[1733688801208,1.86,236.37,236.23,1.86]
[1733688801411,2.1151,236.29,236.24,1.35617652]
[1733688801618,1.86,236.37,236.25,1.35617652]
[1733688801821,1.86,236.37,236.23,1.86]
[1733688802019,1.86,236.37,236.24,1.35616378]
[1733688802214,1.86,236.37,236.25,1.35616378]
[1733688802215,2.1151,236.29,236.25,1.35616378]
[1733688802415,2.1151,236.29,236.23,1.86]
[1733688802718,1.86,236.37,236.24,1.35601935]
[1733688802918,1.86,236.37,236.2,1.3464]
[1733688803117,1.86,236.37,236.22,1.86]
[1733688803320,1.86,236.37,236.23,3.52615111]
[1733688803619,1.86,236.37,236.22,1.86]
[1733688803620,1.86,236.37,236.24,1.35603523]
[1733688803820,1.86,236.37,236.25,1.35603523]
[1733688804019,1.86,236.37,236.22,1.86]
[1733688804217,1.86,236.37,236.23,1.35619527]
[1733688804415,1.86,236.37,236.22,1.86]
[1733688804615,2.1152,236.27,236.23,1.35618474]
[1733688804920,2.1152,236.27,236.19,1.86]
[1733688805118,2.1152,236.27,236.2,3.52663376]
[1733688805420,2.1152,236.27,236.21,1.35622995]
[1733688805722,2.1152,236.27,236.22,1.35622995]
[1733688805921,2.1152,236.27,236.19,1.86]
[1733688806112,2.1152,236.27,236.2,3.52548475]
[1733688806314,2.1152,236.27,236.21,1.35578808]
[1733688806515,2.1152,236.27,236.22,1.35578808]
[1733688806721,2.1152,236.27,236.19,1.86]
[1733688806920,2.1152,236.27,236.2,3.52471516]
[1733688807119,2.1152,236.27,236.21,1.35549212]
[1733688807319,2.1152,236.27,236.22,1.35549212]
[1733688807523,2.1152,236.27,236.19,1.86]
[1733688807724,2.1152,236.27,236.2,3.52387974]
[1733688807920,2.1152,236.27,236.21,1.35517085]
[1733688808113,2.1151,236.29,236.22,1.35517085]
[1733688808318,2.1151,236.29,236.19,1.86]
[1733688808519,2.1151,236.29,236.2,3.523186]
[1733688808719,2.1151,236.28,236.21,1.35490407]
[1733688809020,2.1151,236.28,236.22,1.35490407]
[1733688809221,2.1151,236.28,236.19,1.86]
[1733688809517,2.1151,236.28,236.2,5.38229576]
[1733688809723,2.1151,236.28,236.21,1.35456171]
[1733688809923,2.1151,236.28,236.2,1.86]
[1733688810125,2.1151,236.28,236.21,1.35440157]
[1733688810419,2.1152,236.27,236.2,1.86]
[1733688811015,2.1154,236.25,236.2,1.86]
[1733688811519,2.1154,236.25,236.21,1.3546572]
[1733688811722,2.1154,236.25,236.18,1.86]
[1733688811920,2.1154,236.25,236.19,3.52204953]
[1733688812126,2.1154,236.25,236.2,1.35446698]
[1733688812321,2.1154,236.25,236.21,1.35446698]
[1733688812520,2.1154,236.25,236.18,1.86]
[1733688812721,2.6762,236.29,236.19,3.52279048]
[1733688813029,2.1153,236.27,236.2,1.35475197]
[1733688813326,2.1153,236.27,236.21,1.35475197]
[1733688813629,2.1153,236.26,236.18,1.86]
[1733688814127,2.1153,236.26,236.19,3.52271607]
[1733688814323,2.1153,236.26,236.2,1.35472335]
[1733688814627,2.1153,236.26,236.21,1.35472335]
[1733688814826,2.1153,236.26,236.18,1.86]
[1733688815029,2.1153,236.26,236.19,3.52251376]
[1733688815324,2.1153,236.26,236.2,1.35464555]
[1733688815525,2.1153,236.26,236.21,1.35464555]
[1733688815726,2.1153,236.26,236.18,1.86]
[1733688815920,2.1153,236.26,236.19,3.5224142]
[1733688816119,2.1153,236.26,236.2,1.35460727]
[1733688816324,2.1153,236.26,236.21,1.35460727]
[1733688816524,2.1153,236.26,236.18,1.86]
[1733688816726,2.1153,236.26,236.19,3.52231003]
[1733688816928,2.1153,236.26,236.18,1.86]
[1733688816929,2.1153,236.26,236.2,1.35456721]
[1733688817225,2.1153,236.26,236.14,50.487676]
[1733688817226,2.6762,236.29,236.16,1.86]
[1733688817532,2.6762,236.29,236.17,4.58147898]
[1733688817727,2.1155,236.24,236.18,1.35479825]
[1733688817926,2.1155,236.24,236.19,1.35479825]
[1733688818125,2.1155,236.24,236.16,1.86]
[1733688818425,2.1155,236.24,236.17,3.52298549]
[1733688818630,2.1155,236.24,236.18,1.35482697]
[1733688818830,2.1155,236.24,236.19,1.35482697]
[1733688819131,2.1155,236.24,236.16,1.86]
[1733688819433,2.1155,236.24,236.17,3.52283172]
[1733688819632,2.1155,236.24,236.18,1.35476784]
[1733688819828,2.1155,236.24,236.16,1.86]
[1733688820135,1.86,236.25,236.17,1.35479914]
[1733688820335,1.86,236.24,236.08,1.86]
[1733688820625,2.1161,236.17,236.09,4.58279209]
[1733688820827,2.1161,236.17,236.1,4.58279209]
[1733688821025,2.1161,236.17,236.11,3.52402667]
[1733688821225,2.1161,236.17,236.12,1.35522737]
[1733688821422,2.1161,236.17,236.13,1.35522737]
[1733688821623,2.1161,236.17,236.08,1.86]
[1733688821828,2.1161,236.17,236.09,4.58221892]
[1733688822032,2.1161,236.17,236.1,3.52343657]
[1733688822329,2.1161,236.17,236.11,1.35500044]
[1733688822526,2.1162,236.16,236.08,1.86]
[1733688822727,2.1162,236.16,236.09,1.35529716]
[1733688823030,2.1162,236.16,236.1,1.35529716]
[1733688823226,2.1162,236.16,236.08,1.86]
[1733688823426,2.1162,236.16,236.09,1.35482499]
[1733688823623,2.1162,236.16,236.08,1.86]
[1733688823833,2.1161,236.18,236.09,1.35455381]
[1733688824026,2.1161,236.18,236.1,1.35455381]
[1733688824230,2.1161,236.18,236.08,1.86]
[1733688824432,2.1161,236.18,236.09,1.35424973]
[1733688824733,2.1161,236.18,236.1,1.35424973]
[1733688824928,2.1161,236.18,236.08,1.86]
[1733688825134,2.1161,236.18,236.09,1.35427051]
[1733688825428,2.1162,236.16,236.1,1.35427051]
[1733688825733,2.1162,236.16,236.11,1.35427051]
[1733688825931,2.1162,236.16,236.07,1.86]
[1733688826133,2.1162,236.16,236.08,3.52022667]
[1733688826328,2.1163,236.15,236.09,1.35376601]
[1733688826525,2.1163,236.15,236.0,4.0495]
[1733688826526,2.1163,236.15,236.06,1.86]
[1733688826729,2.1163,236.15,236.07,3.5205864]
[1733688827029,2.1164,236.14,236.08,2.16668206]
[1733688827333,2.1164,236.14,236.09,3.52058643]
[1733688827533,2.1164,236.14,236.1,1.35390437]
[1733688827731,2.1164,236.14,236.11,1.35390437]
[1733688827932,2.1164,236.14,236.06,1.86]
[1733688828130,2.1164,236.14,236.07,4.57900242]
[1733688828329,2.1164,236.14,236.08,3.52010543]
[1733688828531,2.1164,236.14,236.09,1.35371939]
[1733688828735,2.1164,236.14,236.1,1.35371939]
[1733688828937,2.1163,236.16,236.06,1.86]
[1733688829135,1.2784,236.18,236.07,4.57881409]
[1733688829344,1.2784,236.18,236.08,3.51988306]
[1733688829534,1.2784,236.18,236.09,1.35363388]
[1733688829836,2.1163,236.15,236.1,1.35363388]
[1733688830032,2.1163,236.15,236.06,1.86]
[1733688830230,2.1163,236.15,236.07,3.51894997]
[1733688830430,1.2784,236.18,236.08,3.51894997]
[1733688830629,2.1162,236.16,236.06,1.86]
[1733688830830,2.1162,236.16,236.07,1.35343146]
[1733688831032,2.1162,236.16,236.08,3.51936665]
[1733688831231,2.1162,236.16,236.09,1.35343146]
[1733688831431,3.3945,236.18,236.1,1.35343146]
[1733688831639,1.86,236.2,236.06,1.86]
[1733688831839,1.86,236.2,236.07,4.57774859]
[1733688832033,1.86,236.2,236.08,4.57774859]
[1733688832238,1.86,236.2,236.09,4.83063391]
[1733688832438,1.86,236.2,236.1,3.51883391]
[1733688832635,1.86,236.2,236.11,3.51883391]
[1733688832835,1.86,236.2,236.09,1.3118]
[1733688832836,1.86,236.2,236.12,1.35323041]
[1733688833036,1.86,236.2,236.13,1.35323041]
[1733688833232,1.86,236.2,236.09,1.3118]
[1733688833437,1.86,236.21,236.1,3.51754813]
[1733688833638,2.1159,236.2,236.11,3.51754813]
[1733688833837,1.86,236.21,236.12,1.35273592]
[1733688834037,1.86,236.21,236.09,1.3118]
[1733688834541,1.86,236.21,236.1,1.35316069]
[1733688834742,1.86,236.21,236.09,1.3118]
[1733688835735,2.1161,236.17,236.09,1.3118]
[1733688838441,2.1161,236.17,236.06,1.86]
[1733688838638,2.1161,236.17,236.07,1.35329218]
[1733688838843,1.86,236.16,236.03,1.2933]
[1733688839137,1.3455,236.27,236.04,3.5200808]
[1733688839138,1.86,236.15,236.04,3.5200808]
[1733688839441,2.1167,236.11,236.05,1.35370993]
[1733688839743,2.1167,236.11,236.03,1.2933]
[1733688839942,2.1167,236.11,236.04,1.35373845]